fUST/lending_fUST_20250927
["ID","MTS","AMOUNT","RATE_DAILY","PERIOD"]
[388018532,1758966643885,-480.0,0.00035616,9]
[388018533,1758966643895,-480.0,0.00035616,9]
[388018534,1758966643905,-817.82,0.00035616,9]
[388018535,1758966643915,-480.0,0.00035616,9]
[388018536,1758966643925,-487.84742232,0.00035616,9]
[388018537,1758966643935,-480.0,0.00035616,9]
[388018538,1758966643944,-480.0,0.00035616,9]
[388018539,1758966643954,-480.0,0.00035616,9]
[388018540,1758966643963,-480.0,0.00035616,9]
[388018541,1758966643973,-480.0,0.00035616,9]
[388018542,1758966643983,-480.0,0.00035616,9]
[388018543,1758966643992,-480.0,0.00035616,9]
[388018544,1758966644002,-480.0,0.00035616,9]
[388018545,1758966644012,-1456.61,0.00035616,9]
[388018546,1758966644024,-480.0,0.00035616,9]
[388018547,1758966644034,-481.01392555,0.00035616,9]
[388018548,1758966644044,-480.0,0.00035616,9]
[388018549,1758966644054,-1004.68,0.00035616,9]
[388018550,1758966644064,-1441.83,0.00035616,9]
[388018551,1758966644075,-2667.68,0.00035616,9]
[388018552,1758966644090,-480.0,0.00035616,9]
[388018553,1758966644109,-687.2,0.00035616,9]
[388018554,1758966644123,-480.0,0.00035616,9]
[388018555,1758966644132,-480.0,0.00035616,9]
[388018556,1758966644142,-480.0,0.00035616,9]
[388018557,1758966644309,-480.0,0.00035616,9]
[388018558,1758966644320,-480.0,0.00035616,9]
[388018559,1758966644330,-486.24,0.00035616,9]
[388018560,1758966644339,-721.14,0.00035616,9]
[388018561,1758966644349,-480.0,0.00035616,9]
[388018562,1758966644359,-602.63797125,0.00035616,9]
[388018563,1758966644369,-3342.96,0.00035616,9]
[388018564,1758966644378,-480.0,0.00035616,9]
[388018565,1758966644388,-480.0,0.00035616,9]
[388018566,1758966644397,-4872.35,0.00035616,9]
[388018567,1758966644409,-480.0,0.00035616,9]
[388018568,1758966644418,-480.0,0.00035616,9]
[388018569,1758966644427,-607.28258901,0.00035616,9]
[388018570,1758966644436,-1500.9,0.00035616,9]
[388018571,1758966644446,-8390.61,0.00035616,9]
[388018572,1758966644455,-480.0,0.00035616,9]
[388018573,1758966644465,-480.0,0.00035616,9]
[388018574,1758966644475,-8207.9,0.00035616,9]
[388018575,1758966644484,-480.0,0.00035616,9]
[388018576,1758966644494,-480.0,0.00035616,9]
[388018577,1758966644503,-1152.65,0.00035616,9]
[388018578,1758966644513,-480.0,0.00035616,9]
[388018579,1758966644524,-480.0,0.00035616,9]
[388018580,1758966644534,-480.0,0.00035616,9]
[388018581,1758966644543,-480.0,0.00035616,9]
[388018582,1758966644553,-480.0,0.00035616,9]
[388018583,1758966644562,-480.0,0.00035616,9]
[388018584,1758966644571,-921.08,0.00035616,9]
[388018585,1758966644580,-582.96,0.00035616,9]
[388018586,1758966644590,-3281.9,0.00035616,9]
[388018587,1758966644599,-596.97,0.00035616,9]
[388018588,1758966644609,-2334.14,0.00035616,9]
[388018589,1758966644619,-803.84,0.00035616,9]
[388018590,1758966644628,-480.0,0.00035616,9]
[388018591,1758966644638,-688.1,0.00035616,9]
[388018592,1758966644647,-480.0,0.00035616,9]
[388018593,1758966644657,-719.27,0.00035616,9]
[388018594,1758966644666,-2183.08,0.00035616,9]
[388018595,1758966644676,-480.0,0.00035616,9]
[388018596,1758966644685,-480.0,0.00035616,9]
[388018597,1758966644694,-723.3,0.00035616,9]
[388018598,1758966644704,-345.34545128,0.00035616,9]
[388018599,1758966644713,-616.40268864,0.00035616,9]
[388018600,1758966644723,-480.0,0.00035616,9]
[388018601,1758966644732,-480.0,0.00035616,9]
[388018602,1758966644742,-512.0,0.00035616,9]
[388018603,1758966644751,-480.0,0.00035616,9]
[388018604,1758966644761,-597.43,0.00035616,9]
[388018605,1758966644770,-667.72,0.00035616,9]
[388018606,1758966644780,-545.36,0.00035616,9]
[388018607,1758966644789,-480.0,0.00035616,9]
[388018608,1758966644800,-480.0,0.00035616,9]
[388018609,1758966644809,-1048.06,0.00035616,9]
[388018610,1758966644819,-480.0,0.00035616,9]
[388018611,1758966644828,-2744.62,0.00035616,9]
[388018612,1758966644838,-480.0,0.00035616,9]
[388018613,1758966644847,-480.0,0.00035616,9]
[388018614,1758966644858,-480.0,0.00035616,9]
[388018615,1758966644868,-501.77,0.00035616,9]
[388018616,1758966644877,-1000.0,0.00035616,9]
[388018617,1758966644887,-1896.58,0.00035616,9]
[388018618,1758966644896,-480.0,0.00035616,9]
[388018619,1758966644906,-480.0,0.00035616,9]
[388018620,1758966644916,-480.89814689,0.00035616,9]
[388018621,1758966644925,-480.0,0.00035616,9]
[388018622,1758966644935,-480.0,0.00035616,9]
[388018623,1758966644944,-587.89,0.00035616,9]
[388018624,1758966644953,-480.0,0.00035616,9]
[388018625,1758966644963,-3611.53,0.00035616,9]
[388018626,1758966644972,-480.0,0.00035616,9]
[388018627,1758966644981,-3921.83,0.00035616,9]
[388018628,1758966644990,-739.34,0.00035616,9]
[388018629,1758966644999,-480.0,0.00035616,9]
[388018630,1758966645008,-480.0,0.00035616,9]
[388018631,1758966645017,-480.0,0.00035616,9]
[388018632,1758966645026,-1044.96,0.00035616,9]
[388018633,1758966645035,-3854.54,0.00035616,9]
[388018634,1758966645044,-480.0,0.00035616,9]
[388018635,1758966645053,-711.81,0.00035616,9]
[388018636,1758966645063,-2061.79,0.00035616,9]
[388018637,1758966645072,-4529.11,0.00035616,9]
[388018638,1758966645081,-908.95,0.00035616,9]
[388018639,1758966645090,-227.22773625,0.00035616,9]
[388018640,1758966645100,-226.68071511,0.00035616,9]
[388018641,1758966645109,-480.0,0.00035616,9]
[388018642,1758966645119,-4586.51,0.00035616,9]
[388018643,1758966645128,-480.0,0.00035616,9]
[388018644,1758966645138,-2282.96,0.00035616,9]
[388018645,1758966645147,-480.0,0.00035616,9]
[388018646,1758966645156,-480.0,0.00035616,9]
[388018647,1758966645166,-642.28,0.00035616,9]
[388018648,1758966645175,-1558.66,0.00035616,9]
[388018649,1758966645184,-522.97,0.00035616,9]
[388018650,1758966645193,-480.0,0.00035616,9]
[388018651,1758966645203,-487.87536575,0.00035616,9]
[388018652,1758966645212,-480.0,0.00035616,9]
[388018653,1758966645223,-567.85345597,0.00035616,9]
[388018654,1758966645232,-480.0,0.00035616,9]
[388018655,1758966645242,-563.22,0.00035616,9]
[388018656,1758966645251,-480.0,0.00035616,9]
[388018657,1758966645261,-2342.73,0.00035616,9]
[388018658,1758966645270,-480.0,0.00035616,9]
[388018659,1758966645279,-2094.05,0.00035616,9]
[388018660,1758966645288,-15362.97,0.00035616,9]
[388018661,1758966645299,-480.0,0.00035616,9]
[388018662,1758966645308,-8443.92,0.00035616,9]
[388018663,1758966645317,-480.0,0.00035616,9]
[388018664,1758966645327,-348.5494669,0.00035616,9]
[388018665,1758966645337,-480.0,0.00035616,9]
[388018666,1758966645347,-480.0,0.00035616,9]
[388018667,1758966645356,-1581.11,0.00035616,9]
[388018668,1758966645366,-480.0,0.00035616,9]
[388018669,1758966645375,-480.0,0.00035616,9]
[388018670,1758966645384,-534.35,0.00035616,9]
[388018671,1758966645393,-480.0,0.00035616,9]
[388018672,1758966645407,-480.0,0.00035616,9]
[388018673,1758966645417,-1385.88,0.00035616,9]
[388018674,1758966645427,-480.0,0.00035616,9]
[388018675,1758966645436,-480.0,0.00035616,9]
[388018676,1758966645445,-480.0,0.00035616,9]
[388018677,1758966645455,-763.91,0.00035616,9]
[388018678,1758966645464,-602.81,0.00035616,9]
[388018679,1758966645473,-480.0,0.00035616,9]
[388018680,1758966645483,-480.0,0.00035616,9]
[388018681,1758966645493,-904.13,0.00035616,9]
[388018682,1758966645505,-904.13,0.00035616,9]
[388018683,1758966645514,-480.0,0.00035616,9]
[388018684,1758966645523,-904.13,0.00035616,9]
[388018685,1758966645533,-904.13,0.00035616,9]
[388018686,1758966645542,-480.0,0.00035616,9]
[388018687,1758966645552,-904.13,0.00035616,9]
[388018688,1758966645561,-904.13,0.00035616,9]
[388018689,1758966645570,-904.13,0.00035616,9]
[388018690,1758966645579,-904.13,0.00035616,9]
[388018691,1758966645588,-904.13,0.00035616,9]
[388018692,1758966645597,-987.64,0.00035616,9]
[388018693,1758966645606,-904.13,0.00035616,9]
[388018694,1758966645625,-4012.81,0.00035616,9]
[388018695,1758966645637,-904.13,0.00035616,9]
[388018696,1758966645647,-904.13,0.00035616,9]
[388018697,1758966645656,-616.43,0.00035616,9]
[388018698,1758966645666,-904.13,0.00035616,9]
[388018699,1758966645676,-480.0,0.00035616,9]
[388018700,1758966645686,-904.13,0.00035616,9]
[388018701,1758966645696,-904.13,0.00035616,9]
[388018702,1758966645706,-480.0,0.00035616,9]
[388018704,1758966645716,-904.13,0.00035616,9]
[388018705,1758966645726,-904.13,0.00035616,9]
[388018706,1758966645735,-4465.37,0.00035616,9]
[388018707,1758966645745,-904.13,0.00035616,9]
[388018708,1758966645755,-904.13,0.00035616,9]
[388018709,1758966645765,-480.0,0.00035616,9]
[388018710,1758966645774,-904.13,0.00035616,9]
[388018711,1758966645783,-480.0,0.00035616,9]
[388018712,1758966645793,-904.13,0.00035616,9]
[388018713,1758966645803,-904.13,0.00035616,9]
[388018714,1758966645813,-904.13,0.00035616,9]
[388018716,1758966645823,-904.18690917,0.00035616,9]
[388018718,1758966645832,-852.15,0.00035616,9]
[388018720,1758966645843,-480.0,0.00035616,9]
[388018721,1758966645852,-480.0,0.00035616,9]
[388018722,1758966645862,-480.0,0.00035616,9]
[388018723,1758966645872,-480.0,0.00035616,9]
[388018724,1758966645882,-480.0,0.00035616,9]
[388018725,1758966645892,-480.0,0.00035616,9]
[388018726,1758966645902,-1098.08,0.00035616,9]
[388018727,1758966645912,-480.0,0.00035616,9]
[388018728,1758966645922,-480.0,0.00035616,9]
[388018729,1758966645932,-480.0,0.00035616,9]
[388018730,1758966645941,-480.0,0.00035616,9]
[388018731,1758966645952,-2241.75,0.00035616,9]
[388018733,1758966645962,-603.43,0.00035616,9]
[388018734,1758966645972,-1567.34,0.00035616,9]
[388018735,1758966645981,-746.13,0.00035616,9]
[388018736,1758966645991,-1564.86,0.00035616,9]
[388018737,1758966646001,-480.0,0.00035616,9]
[388018738,1758966646010,-1722.82,0.00035616,9]
[388018739,1758966646020,-480.0,0.00035616,9]
[388018740,1758966646030,-2340.95,0.00035616,9]
[388018741,1758966646040,-579.68,0.00035616,9]
[388018742,1758966646050,-480.0,0.00035616,9]
[388018743,1758966646060,-480.0,0.00035616,9]
[388018744,1758966646071,-992.33,0.00035616,9]
[388018745,1758966646080,-480.0,0.00035616,9]
[388018746,1758966646090,-480.0,0.00035616,9]
[388018747,1758966646100,-480.0,0.00035616,9]
[388018748,1758966646109,-1120.98,0.00035616,9]
[388018749,1758966646120,-3928.33,0.00035616,9]
[388018750,1758966646130,-480.0,0.00035616,9]
[388018751,1758966646139,-837.87,0.00035616,9]
[388018753,1758966646149,-480.0,0.00035616,9]
[388018754,1758966646159,-480.0,0.00035616,9]
[388018755,1758966646169,-480.0,0.00035616,9]
[388018756,1758966646178,-3720.81,0.00035616,9]
[388018757,1758966646188,-567.27396628,0.00035616,9]
[388018758,1758966646197,-480.0,0.00035616,9]
[388018759,1758966646207,-480.0,0.00035616,9]
[388018760,1758966646217,-953.46,0.00035616,9]
[388018761,1758966646230,-819.29,0.00035616,9]
[388018762,1758966646240,-480.0,0.00035616,9]
[388018763,1758966646249,-2063.8,0.00035616,9]
[388018764,1758966646258,-480.0,0.00035616,9]
[388018765,1758966646268,-663.61,0.00035616,9]
[388018766,1758966646278,-875.75,0.00035616,9]
[388018767,1758966646287,-480.0,0.00035616,9]
[388018768,1758966646297,-480.0,0.00035616,9]
[388018769,1758966646307,-839.85,0.00035616,9]
[388018770,1758966646316,-610.78,0.00035616,9]
[388018771,1758966646326,-929.67,0.00035616,9]
[388018772,1758966646335,-480.0,0.00035616,7]
[388018773,1758966646345,-6140.26,0.00035616,9]
[388018774,1758966646355,-480.0,0.00035616,9]
[388018775,1758966646365,-2219.09,0.00035616,9]
[388018776,1758966646374,-480.0,0.00035616,9]
[388018777,1758966646383,-480.0,0.00035616,9]
[388018778,1758966646392,-601.12140561,0.00035616,9]
[388018779,1758966646404,-480.0,0.00035616,9]
[388018780,1758966646414,-480.0,0.00035616,9]
[388018781,1758966646424,-480.0,0.00035616,9]
[388018782,1758966646433,-480.0,0.00035616,9]
[388018783,1758966646443,-802.99,0.00035616,9]
[388018784,1758966646452,-806.03,0.00035616,9]
[388018785,1758966646461,-480.0,0.00035616,9]
[388018786,1758966646470,-480.0,0.00035616,9]
[388018788,1758966646479,-2858.29,0.00035616,9]
[388018790,1758966646488,-480.0,0.00035616,9]
[388018792,1758966646497,-480.0,0.00035616,9]
[388018794,1758966646506,-480.0,0.00035616,9]
[388018796,1758966646515,-480.0,0.00035616,9]
[388018798,1758966646524,-480.0,0.00035616,9]
[388018799,1758966646535,-480.0,0.00035616,9]
[388018801,1758966646544,-480.0,0.00035616,9]
[388018803,1758966646553,-2642.68,0.00035616,9]
[388018805,1758966646562,-480.0,0.00035616,9]
[388018807,1758966646571,-480.0,0.00035616,9]
[388018809,1758966646581,-754.16,0.00035616,9]
[388018811,1758966646590,-480.0,0.00035616,9]
[388018813,1758966646600,-480.0,0.00035616,9]
[388018815,1758966646610,-7888.78,0.00035616,9]
[388018817,1758966646620,-481.23782275,0.00035616,9]
[388018819,1758966646630,-480.0,0.00035616,9]
[388018822,1758966646639,-480.0,0.00035616,9]
[388018823,1758966646649,-480.0,0.00035616,9]
[388018825,1758966646658,-5365.87,0.00035616,9]
[388018827,1758966646668,-2272.12,0.00035616,9]
[388018830,1758966646678,-480.0,0.00035616,9]
[388018832,1758966646687,-3965.91,0.00035616,9]
[388018833,1758966646696,-610.94,0.00035616,9]
[388018835,1758966646705,-481.71927455,0.00035616,9]
[388018837,1758966646714,-483.42,0.00035616,9]
[388018839,1758966646723,-480.0,0.00035616,9]
[388018841,1758966646732,-499.21,0.00035616,9]
[388018844,1758966646742,-480.0,0.00035616,9]
[388018846,1758966646751,-1655.85,0.00035616,9]
[388018847,1758966646760,-480.0,0.00035616,9]
[388018848,1758966646770,-600.79,0.00035616,9]
[388018849,1758966646779,-480.0,0.00035616,9]
[388018851,1758966646789,-1073.05,0.00035616,9]
[388018853,1758966646798,-480.0,0.00035616,9]
[388018855,1758966646807,-480.0,0.00035616,9]
[388018857,1758966646818,-480.0,0.00035616,9]
[388018859,1758966646827,-480.0,0.00035616,9]
[388018861,1758966646836,-485.2906932,0.00035616,9]
[388018863,1758966646845,-480.0,0.00035616,9]
[388018865,1758966646854,-480.0,0.00035616,9]
[388018867,1758966646866,-822.55,0.00035616,9]
[388018868,1758966646875,-480.0,0.00035616,9]
[388018869,1758966646884,-480.0,0.00035616,9]
[388018870,1758966646894,-480.0,0.00035616,9]
[388018871,1758966646903,-480.0,0.00035616,9]
[388018872,1758966646912,-535.77,0.00035616,9]
[388018873,1758966646921,-480.0,0.00035616,9]
[388018874,1758966646931,-2482.63,0.00035616,9]
[388018875,1758966646940,-480.0,0.00035616,9]
[388018876,1758966646949,-480.0,0.00035616,9]
[388018877,1758966646958,-311.84,0.00035616,9]
[388018878,1758966646967,-480.0,0.00035616,9]
[388018879,1758966646976,-500.0,0.00035616,2]
[388018880,1758966646986,-500.0,0.00035616,2]
[388018881,1758966646995,-500.0,0.00035616,2]
[388018882,1758966647004,-500.0,0.00035616,2]
[388018883,1758966647014,-500.0,0.00035616,2]
[388018884,1758966647024,-169.60551265,0.00035616,2]
[388018885,1758966647033,-480.0,0.00035616,9]
[388018886,1758966647043,-480.0,0.00035616,9]
[388018887,1758966647052,-480.0,0.00035616,9]
[388018888,1758966647061,-271.41491125,0.00035616,9]
[388018889,1758966647071,-898.13,0.00035616,9]
[388018890,1758966647079,-480.0,0.00035616,9]
[388018891,1758966647088,-1895.44,0.00035616,9]
[388018892,1758966647098,-480.0,0.00035616,9]
[388018893,1758966647107,-480.0,0.00035616,9]
[388018894,1758966647116,-1074.6,0.00035616,9]
[388018895,1758966647125,-480.0,0.00035616,9]
[388018896,1758966647134,-480.0,0.00035616,9]
[388018897,1758966647143,-500.0,0.00035673,2]
[388018898,1758966647152,-585.16274702,0.00035673,5]
[388018899,1758966647161,-592.60819334,0.00035673,5]
[388018900,1758966647170,-500.0,0.00035673,5]
[388018901,1758966647179,-168.15956814,0.00035673,5]
[388018902,1758966647189,-500.0,0.00035673,5]
[388018903,1758966647199,-503.23558128,0.00035673,5]
[388018904,1758966647208,-500.0,0.00035673,5]
[388018905,1758966647217,-500.0,0.00035673,5]
[388018906,1758966647226,-500.0,0.00035673,5]
[388018907,1758966647235,-556.99301391,0.00035673,5]
[388018908,1758966647244,-500.0,0.00035673,5]
[388018909,1758966647253,-500.0,0.00035673,5]
[388018910,1758966647262,-500.0,0.00035673,5]
[388018911,1758966647271,-500.0,0.00035673,5]
[388018912,1758966647280,-500.0,0.00035673,5]
[388018913,1758966647289,-7703.68714434,0.0003579,2]
[388018914,1758966647297,-167.85147763,0.00035871,20]
[388018915,1758966647306,-500.0,0.00035873,5]
[388018916,1758966647315,-500.0,0.00035873,5]
[388018917,1758966647325,-500.71670873,0.00035873,5]
[388018918,1758966647333,-501.32704153,0.00035873,5]
[388018919,1758966647342,-500.0,0.00035873,5]
[388018920,1758966647351,-340.96424801,0.00035873,5]
[388018921,1758966647360,-500.0,0.00035873,5]
[388018922,1758966647370,-500.0,0.00035873,5]
[388018923,1758966647378,-500.0,0.00035873,5]
[388018924,1758966647387,-500.0,0.00035873,5]
[388018925,1758966647399,-500.0,0.00035873,5]
[388018926,1758966647408,-500.0,0.00035873,5]
[388018927,1758966647417,-500.0,0.00035873,5]
[388018928,1758966647426,-500.0,0.00035873,2]
[388018929,1758966647435,-500.0,0.00035873,5]
[388018930,1758966647444,-315.22645588,0.0003589,9]
[388018931,1758966647454,-480.0,0.0003589,9]
[388018932,1758966647465,-797.58,0.0003589,9]
[388018933,1758966647474,-480.0,0.0003589,9]
[388018934,1758966647483,-480.0,0.0003589,9]
[388018935,1758966647492,-480.0,0.0003589,9]
[388018936,1758966647501,-480.0,0.0003589,9]
[388018937,1758966647510,-326.72413213,0.0003589,9]
[388018938,1758966647518,-480.0,0.0003589,9]
[388018939,1758966647751,-480.0,0.0003589,9]
[388018940,1758966647762,-480.0,0.0003589,9]
[388018941,1758966647774,-482.38,0.0003589,9]
[388018942,1758966647784,-480.0,0.0003589,9]
[388018943,1758966647793,-480.0,0.0003589,9]
[388018944,1758966647803,-480.0,0.0003589,9]
[388018945,1758966647813,-480.0,0.0003589,9]
[388018946,1758966647823,-480.0,0.0003589,9]
[388018947,1758966647833,-480.0,0.0003589,9]
[388018948,1758966647842,-480.0,0.0003589,9]
[388018949,1758966647852,-480.0,0.0003589,9]
[388018950,1758966647861,-480.0,0.0003589,9]
[388018951,1758966647871,-480.0,0.0003589,9]
[388018952,1758966647881,-480.0,0.0003589,9]
[388018953,1758966647891,-480.0,0.0003589,9]
[388018954,1758966647900,-480.0,0.0003589,9]
[388018955,1758966647910,-480.0,0.0003589,9]
[388018956,1758966647920,-705.78,0.0003589,9]
[388018957,1758966647930,-480.0,0.0003589,9]
[388018958,1758966647939,-480.0,0.0003589,9]
[388018959,1758966647949,-480.0,0.0003589,9]
[388018960,1758966647958,-624.69,0.0003589,9]
[388018961,1758966647968,-480.0,0.0003589,9]
[388018962,1758966647978,-480.0,0.0003589,9]
[388018963,1758966647987,-482.75134665,0.0003589,9]
[388018964,1758966647997,-480.0,0.0003589,9]
[388018965,1758966648007,-480.0,0.0003589,9]
[388018966,1758966648016,-480.0,0.0003589,9]
[388018967,1758966648027,-315.47956739,0.0003589,9]
[388018968,1758966648037,-480.0,0.0003589,9]
[388018969,1758966648047,-480.0,0.0003589,9]
[388018970,1758966648057,-480.0,0.0003589,9]
[388018971,1758966648067,-480.0,0.0003589,9]
[388018972,1758966648076,-480.0,0.0003589,9]
[388018973,1758966648086,-480.0,0.0003589,9]
[388018974,1758966648095,-657.13,0.0003589,9]
[388018975,1758966648105,-480.0,0.0003589,9]
[388018976,1758966648114,-480.0,0.0003589,9]
[388018977,1758966648124,-480.0,0.0003589,9]
[388018978,1758966648133,-480.0,0.0003589,9]
[388018979,1758966648143,-480.0,0.0003589,9]
[388018980,1758966648153,-480.0,0.0003589,9]
[388018981,1758966648163,-480.0,0.0003589,9]
[388018982,1758966648172,-480.0,0.0003589,9]
[388018983,1758966648183,-480.0,0.0003589,9]
[388018984,1758966648193,-763.89,0.0003589,9]
[388018985,1758966648203,-2206.93,0.0003589,9]
[388018986,1758966648213,-480.0,0.0003589,9]
[388018987,1758966648223,-480.0,0.0003589,9]
[388018988,1758966648232,-480.0,0.0003589,9]
[388018989,1758966648241,-480.0,0.0003589,9]
[388018990,1758966648251,-480.0,0.0003589,9]
[388018991,1758966648261,-485.39332521,0.0003589,9]
[388018992,1758966648271,-480.0,0.0003589,9]
[388018993,1758966648280,-480.0,0.0003589,9]
[388018994,1758966648289,-480.0,0.0003589,9]
[388018995,1758966648298,-480.0,0.0003589,9]
[388018996,1758966648307,-480.0,0.0003589,9]
[388018997,1758966648317,-480.0,0.0003589,9]
[388018998,1758966648326,-480.0,0.0003589,9]
[388018999,1758966648335,-480.0,0.0003589,9]
[388019000,1758966648344,-480.0,0.0003589,9]
[388019001,1758966648354,-480.0,0.0003589,9]
[388019002,1758966648363,-480.0,0.0003589,9]
[388019003,1758966648372,-481.00795552,0.0003589,9]
[388019004,1758966648382,-498.15,0.0003589,9]
[388019005,1758966648391,-480.0,0.0003589,9]
[388019006,1758966648400,-481.27137846,0.0003589,9]
[388019007,1758966648410,-480.0,0.0003589,9]
[388019008,1758966648420,-1579.73,0.0003589,9]
[388019009,1758966648429,-480.0,0.0003589,9]
[388019010,1758966648438,-480.0,0.0003589,9]
[388019011,1758966648448,-480.0,0.0003589,9]
[388019012,1758966648457,-480.0,0.0003589,9]
[388019013,1758966648466,-480.0,0.0003589,9]
[388019014,1758966648476,-901.29,0.0003589,9]
[388019015,1758966648485,-1617.79,0.0003589,9]
[388019016,1758966648494,-480.0,0.0003589,9]
[388019017,1758966648504,-480.0,0.0003589,9]
[388019018,1758966648513,-480.0,0.0003589,9]
[388019019,1758966648522,-480.0,0.0003589,9]
[388019020,1758966648532,-884.45,0.0003589,9]
[388019021,1758966648542,-480.0,0.0003589,9]
[388019022,1758966648551,-847.6,0.0003589,9]
[388019023,1758966648560,-1102.85,0.0003589,9]
[388019024,1758966648569,-480.0,0.0003589,9]
[388019025,1758966648579,-480.0,0.0003589,9]
[388019026,1758966648588,-582.39,0.0003589,9]
[388019027,1758966648597,-188.4539238,0.0003589,9]
[388019028,1758966648607,-480.0,0.0003589,9]
[388019029,1758966648616,-480.0,0.0003589,9]
[388019030,1758966648625,-520.0,0.0003589,3]
[388019031,1758966648635,-480.0,0.0003589,9]
[388019032,1758966648644,-480.0,0.0003589,9]
[388019033,1758966648653,-480.0,0.0003589,9]
[388019034,1758966648662,-482.78976838,0.0003589,9]
[388019035,1758966648672,-241.87782608,0.0003589,2]
[388019036,1758966648681,-155.40308475,0.0003589,9]
[388019037,1758966648691,-480.0,0.0003589,9]
[388019038,1758966648700,-546.62,0.0003589,9]
[388019039,1758966648710,-480.0,0.0003589,9]
[388019040,1758966648719,-500.0,0.0003589,9]
[388019041,1758966648728,-480.0,0.0003589,9]
[388019042,1758966648738,-480.0,0.0003589,9]
[388019043,1758966648747,-464.5428329,0.0003589,9]
[388019044,1758966648756,-480.0,0.0003589,9]
[388019045,1758966648767,-480.0,0.0003589,9]
[388019046,1758966648776,-480.0,0.0003589,9]
[388019047,1758966648786,-480.0,0.0003589,9]
[388019048,1758966648796,-222.31507473,0.0003589,9]
[388019049,1758966648806,-480.0,0.0003589,9]
[388019050,1758966648815,-480.0,0.0003589,9]
[388019051,1758966648824,-480.0,0.0003589,9]
[388019052,1758966648834,-480.0,0.0003589,9]
[388019053,1758966648844,-480.0,0.0003589,9]
[388019054,1758966648853,-480.0,0.0003589,9]
[388019055,1758966648864,-480.0,0.0003589,9]
[388019056,1758966648873,-480.0,0.0003589,9]
[388019057,1758966648883,-480.0,0.0003589,9]
[388019058,1758966648893,-480.0,0.0003589,9]
[388019059,1758966648903,-480.0,0.0003589,9]
[388019060,1758966648912,-480.0,0.0003589,9]
[388019061,1758966648922,-480.0,0.0003589,9]
[388019062,1758966648931,-420.1532824,0.0003589,9]
[388019063,1758966648940,-480.0,0.0003589,9]
[388019064,1758966648950,-480.0,0.0003589,9]
[388019065,1758966648959,-480.0,0.0003589,9]
[388019066,1758966648969,-480.0,0.0003589,9]
[388019067,1758966648978,-811.63,0.0003589,9]
[388019068,1758966648988,-206.09986336,0.0003589,9]
[388019069,1758966648998,-777.81,0.0003589,9]
[388019070,1758966649009,-480.0,0.0003589,9]
[388019071,1758966649018,-512.36,0.0003589,9]
[388019072,1758966649028,-446.14201583,0.0003589,9]
[388019073,1758966649037,-522.43,0.0003589,9]
[388019074,1758966649048,-480.0,0.0003589,9]
[388019075,1758966649057,-625.44300185,0.0003589,9]
[388019076,1758966649067,-480.0,0.0003589,9]